bitfinex-derivatives/quotes_BTCF0:USTF0_20241022
["timestamp","ask_amount","ask_price","bid_price","bid_amount"]
[1729558359548,0.3608,67221.0,67216.0,0.08894101]
[1729558359549,0.074411,67217.0,67216.0,0.08894101]
[1729558359749,0.3608,67221.0,67216.0,0.36408566]
[1729558359956,0.3608,67221.0,67218.0,0.16335001]
[1729558360153,0.3608,67221.0,67219.0,0.334709]
[1729558360354,0.3608,67221.0,67220.0,0.2618]
[1729558360650,0.3608,67226.0,67220.0,0.2618]
[1729558360860,0.074406,67222.0,67213.0,0.001]
[1729558361047,0.26,67223.0,67213.0,0.001]
[1729558361357,0.074409,67219.0,67218.0,0.001]
[1729558362059,0.074409,67219.0,67218.0,0.002]
[1729558362254,0.17,67221.0,67218.0,0.002]
[1729558362453,0.074404,67225.0,67218.0,0.172]
[1729558362658,0.074404,67225.0,67218.0,0.24641]
[1729558363059,0.605209,67219.0,67218.0,0.002]
[1729558363455,0.605209,67219.0,67218.0,0.001]
[1729558363764,0.074415,67214.0,67210.0,0.2717]
[1729558363951,0.244418,67212.0,67210.0,0.2717]
[1729558364150,0.074418,67211.0,67205.0,0.074424]
[1729558364352,0.17,67209.0,67205.0,0.074424]
[1729558364863,0.17,67209.0,67202.0,0.2708]
[1729558365063,0.17,67209.0,67203.0,0.435227]
[1729558365462,0.17,67209.0,67203.0,0.3608]
[1729558365463,0.074425,67206.0,67203.0,0.3608]
[1729558365762,0.244418,67212.0,67205.0,0.17]
[1729558366164,0.074418,67212.0,67206.0,0.074423]
[1729558366362,0.3608,67213.0,67205.0,0.17]
[1729558366559,0.17,67212.0,67205.0,0.17]
[1729558366771,0.074422,67208.0,67205.0,0.17]
[1729558366951,0.074422,67208.0,67203.0,0.3668]
[1729558367153,0.074422,67208.0,67204.0,0.10350428]
[1729558367457,0.074424,67206.0,67205.0,0.10350428]
[1729558367651,0.074424,67206.0,67205.0,0.10750428]
[1729558368363,0.074424,67206.0,67205.0,0.10350428]
[1729558368667,0.17,67208.0,67205.0,0.10350428]
[1729558368668,0.17,67216.0,67205.0,0.27350428]
[1729558368867,0.074415,67214.0,67210.0,0.07402892]
[1729558369170,0.414418,67211.0,67204.0,0.07402892]
[1729558369474,0.074426,67204.0,67203.0,0.07403628]
[1729558369688,0.17,67204.0,67200.0,0.07403628]
[1729558369853,0.07443,67200.0,67199.0,0.07403628]
[1729558370055,0.17,67200.0,67195.0,0.07403628]
[1729558370365,0.17,67196.0,67194.0,0.3608]
[1729558370557,0.244435,67196.0,67195.0,0.17819945]
[1729558370864,0.244435,67196.0,67195.0,0.17826227]
[1729558371069,0.244435,67196.0,67195.0,0.17824928]
[1729558371451,0.244435,67196.0,67195.0,0.07404957]
[1729558372176,0.3608,67201.0,67195.0,0.25268808]
[1729558372356,0.3608,67201.0,67194.0,0.43716957]
[1729558372557,0.074431,67199.0,67194.0,0.43584957]
[1729558372763,0.074431,67199.0,67195.0,0.17825211]
[1729558373061,0.074431,67199.0,67195.0,0.07404957]
[1729558373255,0.074431,67199.0,67196.0,0.07404957]
[1729558374169,0.17,67202.0,67196.0,0.07404957]
[1729558374471,0.244428,67202.0,67198.0,0.074431]
[1729558375167,0.244428,67202.0,67199.0,0.074431]
[1729558375768,0.244428,67202.0,67200.0,0.07443]
[1729558377066,0.258,67211.0,67201.0,0.17]
[1729558377264,0.17,67209.0,67206.0,0.074424]
[1729558377669,0.074422,67208.0,67206.0,0.074424]
[1729558378168,0.17,67209.0,67206.0,0.074424]
[1729558378361,0.074423,67207.0,67206.0,0.074424]
[1729558379569,0.3608,67208.0,67203.0,0.07404957]
[1729558379773,0.074428,67202.0,67201.0,0.07404957]
[1729558380568,0.074428,67202.0,67201.0,0.10409329]
[1729558380978,0.075428,67202.0,67201.0,0.10509329]
[1729558381568,0.075428,67202.0,67201.0,0.10409329]
[1729558382479,0.075428,67202.0,67201.0,0.10509329]
[1729558382682,0.606228,67202.0,67201.0,0.10509329]
[1729558383179,0.606228,67202.0,67201.0,0.07523746]
[1729558383681,0.5308,67202.0,67198.0,0.07423746]
[1729558383870,0.437228,67202.0,67201.0,0.001]
[1729558384071,0.607228,67202.0,67201.0,0.001]
[1729558384269,0.607228,67202.0,67198.0,0.07423746]
[1729558384270,0.5318,67202.0,67198.0,0.07423746]
[1729558384487,0.5318,67202.0,67201.0,0.001]
[1729558384488,0.607228,67202.0,67201.0,0.001]
[1729558384681,0.437228,67202.0,67201.0,0.001]
[1729558386268,0.3618,67202.0,67198.0,0.001]
[1729558386470,0.244431,67199.0,67198.0,0.001]
[1729558386781,0.244431,67199.0,67198.0,0.10546115]
[1729558387081,0.244431,67199.0,67198.0,0.10446115]
[1729558388080,0.246431,67199.0,67198.0,0.10546115]
[1729558389579,0.246431,67199.0,67198.0,0.07521012]
[1729558389780,0.246431,67199.0,67198.0,0.10557335]
[1729558390080,0.246431,67199.0,67198.0,0.17978285]
[1729558390263,0.246431,67199.0,67198.0,0.001]
[1729558390470,0.002,67199.0,67198.0,0.17998179]
[1729558390970,0.0008,67208.0,67198.0,0.30429353]
[1729558391174,0.3608,67210.0,67209.0,0.07442]
[1729558391479,0.074417,67213.0,67209.0,0.10383697]
[1729558391674,0.074417,67213.0,67212.0,0.07423296]
[1729558391868,0.074417,67213.0,67212.0,0.17786535]
[1729558392377,0.074417,67213.0,67212.0,0.07423296]
[1729558392378,0.244417,67213.0,67212.0,0.07423296]
[1729558392776,0.244417,67213.0,67208.0,0.339521]
[1729558393371,0.244417,67213.0,67212.0,0.001]
[1729558393765,0.244417,67213.0,67209.0,0.07442]
[1729558395070,0.17,67213.0,67209.0,0.07442]
[1729558395270,0.074417,67212.0,67209.0,0.07442]
[1729558395876,0.074418,67211.0,67209.0,0.07442]
[1729558396276,0.074418,67211.0,67209.0,0.07542]
[1729558396476,0.074418,67211.0,67209.0,0.001]
[1729558396678,0.074418,67211.0,67208.0,0.2651]
[1729558396877,0.17,67210.0,67209.0,0.001]
[1729558397479,0.244419,67210.0,67209.0,0.001]
[1729558397877,0.074419,67210.0,67209.0,0.001]
[1729558399283,0.17,67211.0,67209.0,0.001]
[1729558399494,0.3608,67216.0,67209.0,0.001]
[1729558399674,0.4468,67222.0,67219.0,0.074409]
[1729558399675,0.00076,67222.0,67219.0,0.074409]
[1729558399875,0.074405,67223.0,67219.0,0.074409]
[1729558400589,0.17,67222.0,67219.0,0.074409]
[1729558400783,0.074407,67221.0,67219.0,0.074409]
[1729558401084,0.17,67222.0,67216.0,0.2603]
[1729558401288,0.00382765,67225.0,67223.0,0.074405]
[1729558401492,0.00382765,67225.0,67224.0,0.074404]
[1729558401786,0.074405,67224.0,67219.0,0.075409]
[1729558401988,0.244408,67220.0,67219.0,0.076409]
[1729558402784,0.17,67220.0,67219.0,0.075409]
[1729558402984,0.17,67220.0,67219.0,0.19297929]
[1729558403191,0.605208,67220.0,67219.0,0.09004609]
[1729558403383,0.605208,67220.0,67219.0,0.08904609]
[1729558403593,0.605208,67220.0,67219.0,0.09104609]
[1729558403979,0.605208,67220.0,67219.0,0.09004609]
[1729558404179,0.605208,67220.0,67219.0,0.09104609]
[1729558407883,0.61560572,67220.0,67219.0,0.09104609]
[1729558408194,0.72707809,67220.0,67219.0,0.002]
[1729558408395,0.72707809,67220.0,67210.0,0.2808]
[1729558408396,0.074418,67211.0,67210.0,0.2808]
[1729558408582,0.11147237,67211.0,67208.0,0.074421]
[1729558408782,0.17,67209.0,67197.0,0.01082958]
[1729558409090,0.074435,67196.0,67194.0,0.2785]
[1729558409290,0.12011708,67196.0,67194.0,0.2785]
[1729558409493,0.11147237,67196.0,67187.0,0.2603]
[1729558409802,0.17,67189.0,67187.0,0.2603]
[1729558410091,0.06579029,67188.0,67187.0,0.2603]
[1729558410687,0.02934469,67188.0,67187.0,0.2603]
[1729558410990,0.02934469,67188.0,67187.0,0.2623]
[1729558411986,0.02875828,67188.0,67187.0,0.2623]
[1729558412195,0.02875828,67188.0,67187.0,0.2713]
[1729558412393,0.17,67189.0,67187.0,0.11494955]
[1729558412588,0.244442,67189.0,67188.0,0.10394955]
[1729558413991,0.17,67192.0,67188.0,0.10394955]
[1729558414193,0.3608,67193.0,67190.0,0.07415118]
[1729558414382,0.3608,67193.0,67192.0,0.14859018]
[1729558414585,0.3608,67193.0,67192.0,0.17841916]
[1729558415484,0.17,67199.0,67194.0,0.074437]
[1729558415689,0.17,67199.0,67197.0,0.0741395]
[1729558416487,0.17,67199.0,67196.0,0.0741395]
[1729558416688,0.173,67199.0,67197.0,0.17787254]
[1729558416897,0.247432,67199.0,67197.0,0.0741395]
[1729558417195,0.250432,67199.0,67197.0,0.0741395]
[1729558417602,0.250432,67199.0,67198.0,0.17771025]
[1729558417802,0.250432,67199.0,67198.0,0.10357075]
[1729558418099,0.006,67199.0,67198.0,0.17800375]
[1729558418401,0.006,67199.0,67198.0,0.44440375]
[1729558418900,0.007,67199.0,67198.0,0.44440375]
[1729558419194,0.009,67199.0,67198.0,0.44540375]
[1729558420085,0.001,67199.0,67198.0,0.44440375]
[1729558420289,0.003,67199.0,67198.0,0.53341378]
[1729558420495,0.003,67199.0,67198.0,0.44740375]
[1729558420695,0.17,67205.0,67203.0,0.074426]
[1729558420898,0.00544587,67915.0,67204.0,0.10336393]
[1729558420899,0.074415,67214.0,67204.0,0.10336393]
[1729558421106,0.01043163,67220.0,67211.0,0.17]
[1729558421401,0.244412,67217.0,67215.0,0.0741281]
[1729558421812,0.17,67217.0,67216.0,0.1485411]
[1729558421990,0.17,67221.0,67216.0,0.17717557]
[1729558422191,0.17,67217.0,67216.0,0.07411766]
[1729558422499,0.17,67217.0,67216.0,0.17684379]
[1729558422730,0.37156254,67223.0,67216.0,0.17684379]
[1729558422731,0.17,67221.0,67216.0,0.17684379]
[1729558422901,0.17,67221.0,67217.0,0.07411766]
[1729558423094,0.17,67221.0,67219.0,0.074409]
[1729558423400,0.001,67220.0,67219.0,0.074409]
[1729558424601,0.258408,67221.0,67219.0,0.074409]
[1729558424806,0.074408,67220.0,67219.0,0.075409]
[1729558425204,0.074408,67220.0,67219.0,0.001]
[1729558425703,0.088408,67220.0,67219.0,0.002]
[1729558425897,0.088408,67220.0,67219.0,0.06129191]
[1729558426105,0.088408,67220.0,67219.0,0.002]
[1729558426609,0.089408,67220.0,67219.0,0.002]
[1729558427111,0.815588,67220.0,67219.0,0.002]
[1729558427307,0.815588,67220.0,67212.0,0.07411766]
[1729558427308,0.92699637,67220.0,67207.0,0.3608]
[1729558427516,0.5308,67208.0,67196.0,0.074434]
[1729558427699,0.17,67197.0,67196.0,0.074434]
[1729558429204,0.17,67200.0,67194.0,0.2714]
[1729558429402,0.17,67200.0,67197.0,0.074433]
[1729558430007,0.244431,67200.0,67196.0,0.003]
[1729558430202,0.074432,67199.0,67196.0,0.003]
[1729558430408,0.074432,67199.0,67195.0,0.074435]
[1729558430908,0.074432,67199.0,67196.0,0.074434]
[1729558431212,0.074432,67199.0,67196.0,0.075434]
[1729558432015,0.175,67200.0,67196.0,0.075434]
[1729558432414,0.244434,67197.0,67196.0,0.001]
[1729558432807,0.27318835,67197.0,67196.0,0.001]
[1729558433216,0.19875435,67197.0,67194.0,0.2714]
[1729558433414,0.074436,67196.0,67195.0,0.002]
[1729558433813,0.10319116,67196.0,67195.0,0.002]
[1729558434119,0.10319116,67196.0,67194.0,0.2714]
[1729558434307,0.02875516,67195.0,67194.0,0.2714]
[1729558434510,0.10319116,67195.0,67194.0,0.2714]
[1729558435416,0.005,67196.0,67194.0,0.37510399]
[1729558435615,0.005,67196.0,67195.0,0.10370399]
[1729558435917,0.17,67204.0,67195.0,0.63450399]
[1729558436117,0.074421,67209.0,67202.0,0.3608]
[1729558436413,0.17,67211.0,67205.0,0.08901671]
[1729558436607,0.17,67211.0,67210.0,0.07417773]
[1729558436809,0.3608,67218.0,67210.0,0.34770498]
[1729558437027,0.3608,67218.0,67215.0,0.0741785]
[1729558437309,0.01041629,67221.0,67216.0,0.10270308]
[1729558437515,0.244407,67222.0,67218.0,0.07416986]
[1729558437819,0.17,67219.0,67218.0,0.07416986]
[1729558438121,0.244409,67219.0,67218.0,0.17663925]
[1729558438420,0.244409,67219.0,67218.0,0.07416261]
[1729558439011,0.244409,67219.0,67218.0,0.07516261]
[1729558439012,0.258409,67219.0,67218.0,0.07516261]
[1729558439214,0.258409,67219.0,67218.0,0.001]
[1729558440106,0.260409,67219.0,67218.0,0.002]
[1729558440509,0.260409,67219.0,67216.0,0.07416261]
[1729558440510,0.074411,67217.0,67216.0,0.07416261]
[1729558440713,0.435211,67217.0,67216.0,0.04450117]
[1729558441015,0.3608,67217.0,67214.0,0.05933197]
[1729558441214,0.17,67215.0,67214.0,0.05933727]
[1729558441411,0.074418,67211.0,67210.0,0.07416261]
[1729558441721,0.244418,67211.0,67210.0,0.10279676]
[1729558441913,0.244418,67211.0,67210.0,0.17697374]
[1729558442420,0.17,67211.0,67208.0,0.3608]
[1729558442628,0.07442,67209.0,67208.0,0.3608]
[1729558442920,0.074426,67204.0,67202.0,0.3608]
[1729558443314,0.074426,67204.0,67203.0,0.074427]
[1729558444024,0.074426,67204.0,67201.0,0.32020959]
[1729558444221,0.076426,67204.0,67201.0,0.32020959]
[1729558445316,0.085426,67204.0,67202.0,0.001]
[1729558445610,0.074427,67203.0,67202.0,0.001]
[1729558445811,0.074428,67202.0,67201.0,0.32120959]
[1729558446017,0.074428,67202.0,67201.0,0.2767]
[1729558446413,0.074428,67202.0,67201.0,0.2757]
[1729558447031,0.080428,67202.0,67201.0,0.2767]
[1729558448414,0.080428,67202.0,67201.0,0.001]
[1729558450519,0.080428,67202.0,67201.0,0.10457586]
[1729558450829,0.080428,67202.0,67201.0,0.17884459]
[1729558451217,0.080428,67202.0,67201.0,0.17883916]
[1729558451423,0.080428,67202.0,67201.0,0.10457586]
[1729558453722,0.080428,67202.0,67201.0,0.10457257]
[1729558455935,0.006,67202.0,67201.0,0.10457257]
[1729558456145,0.53168,67205.0,67201.0,0.10457257]
[1729558456331,0.5308,67205.0,67204.0,0.074426]
[1729558456638,0.5308,67205.0,67204.0,0.17799857]
[1729558456837,0.605225,67205.0,67204.0,0.10357257]
[1729558457428,0.5308,67205.0,67203.0,0.05943843]
[1729558457730,0.074426,67204.0,67203.0,0.05943843]
[1729558457936,0.074427,67203.0,67202.0,0.05943843]
[1729558458136,0.244427,67203.0,67200.0,0.07443]
[1729558458834,0.074427,67203.0,67202.0,0.074428]
[1729558459559,0.00076,67218.0,67203.0,0.4464]
[1729558459842,0.00423365,67227.0,67223.0,0.074404]
[1729558460037,0.00347365,67227.0,67224.0,0.605204]
[1729558461734,0.00347365,67227.0,67224.0,0.435204]
[1729558462032,0.00682765,67225.0,67224.0,0.606204]
[1729558462424,0.00682765,67225.0,67224.0,0.436204]
[1729558462651,0.00982765,67225.0,67224.0,0.607204]
[1729558462826,0.07858079,67239.0,67231.0,0.074396]
[1729558463029,0.07858079,67239.0,67231.0,0.605196]
[1729558463333,0.00286116,67241.0,67231.0,1.051396]
[1729558463539,0.00286116,67241.0,67240.0,0.435186]
[1729558465026,0.00286116,67241.0,67240.0,0.881346]
[1729558465432,0.00308117,67248.0,67242.0,0.074384]
[1729558465637,0.00308117,67248.0,67242.0,0.5308]
[1729558465841,0.00308117,67248.0,67243.0,0.71612]
[1729558466043,0.00308117,67248.0,67244.0,0.16956]
[1729558466336,0.00308117,67248.0,67245.0,0.07438]
[1729558466526,0.00308117,67248.0,67245.0,0.5205]
[1729558468641,0.00308117,67248.0,67245.0,0.5215]
[1729558468831,0.00308117,67248.0,67245.0,0.5225]
[1729558472029,0.00308117,67248.0,67245.0,0.07638]
[1729558472835,0.17,67247.0,67245.0,0.07638]
[1729558473240,0.17,67247.0,67245.0,0.002]
[1729558474636,0.00308117,67248.0,67245.0,0.002]
[1729558476053,0.00308117,67248.0,67245.0,0.07638]
[1729558483947,0.00308117,67248.0,67245.0,0.24282]
[1729558485650,0.0037652,67250.0,67245.0,0.41282]
[1729558485859,0.00432427,67255.0,67252.0,0.074373]
[1729558486147,0.00370471,67262.0,67261.0,0.074363]
[1729558486351,0.00370471,67262.0,67261.0,0.771603]
[1729558487343,0.0031617,67271.0,67261.0,0.80328791]
[1729558487546,0.0031617,67271.0,67268.0,0.3608]
[1729558488046,0.0031617,67271.0,67268.0,0.46672271]
[1729558488654,0.00393456,67285.0,67269.0,0.074353]
[1729558488836,0.07753542,67292.0,67285.0,0.074336]
[1729558488837,0.00076,67291.0,67285.0,0.074336]
[1729558489148,0.00320642,67292.0,67286.0,0.19430573]
[1729558489351,0.00320642,67292.0,67286.0,0.10540598]
[1729558491250,0.00320642,67292.0,67286.0,0.18029604]
[1729558491546,0.00320642,67292.0,67286.0,0.18129604]
[1729558491751,0.00320642,67292.0,67286.0,0.18029604]
[1729558491953,0.00320642,67292.0,67286.0,0.18129604]
[1729558492341,0.00320642,67292.0,67286.0,0.18129375]
[1729558492544,0.00320642,67292.0,67286.0,0.08647703]
[1729558493141,0.17387704,67289.0,67286.0,0.07588777]
[1729558493342,0.074333,67288.0,67286.0,0.002]
[1729558494352,0.07865986,67287.0,67286.0,0.002]
[1729558494755,0.00432586,67287.0,67284.0,0.41989804]
[1729558495052,0.244336,67285.0,67284.0,0.3608]
[1729558495257,0.5308,67285.0,67280.0,0.05909804]
[1729558495554,0.5308,67285.0,67274.0,0.3608]
[1729558495555,0.17,67282.0,67274.0,0.3608]
[1729558495756,0.074343,67279.0,67274.0,0.3608]
[1729558496142,0.00432586,67287.0,67278.0,0.17]
[1729558496354,0.00432586,67287.0,67286.0,0.5308]
[1729558496654,0.00532586,67287.0,67286.0,0.605135]
[1729558496856,0.00632586,67287.0,67286.0,0.605135]
[1729558497450,0.00632586,67287.0,67286.0,0.606135]
[1729558497451,0.00532586,67287.0,67286.0,0.606135]
[1729558497651,0.00632586,67287.0,67286.0,0.607135]
[1729558498664,0.00632586,67287.0,67286.0,1.052975]
[1729558499660,0.00438359,67294.0,67291.0,0.07433]
[1729558500949,0.00438359,67294.0,67291.0,0.07533]
[1729558500950,0.00420642,67292.0,67291.0,0.07533]
[1729558501654,0.00520642,67292.0,67291.0,0.07633]
[1729558501848,0.00520642,67292.0,67291.0,0.24265]
[1729558502052,0.00520642,67292.0,67291.0,0.07633]
[1729558502450,0.11594025,67292.0,67287.0,0.12733258]
[1729558502651,0.28073383,67291.0,67286.0,0.52692]
[1729558502949,0.27339677,67290.0,67287.0,0.074334]
[1729558503154,0.27339677,67289.0,67288.0,0.074333]
[1729558503650,0.11073383,67289.0,67288.0,0.074333]
[1729558503857,0.11073383,67289.0,67287.0,0.002]
[1729558504065,0.074331,67290.0,67287.0,0.002]
[1729558504066,0.11073383,67288.0,67287.0,0.002]
[1729558504360,0.06511041,67288.0,67287.0,0.001]
[1729558504856,0.06511041,67288.0,67286.0,0.3608]
[1729558505066,0.34724267,67287.0,67280.0,0.074341]
[1729558505250,0.074344,67278.0,67275.0,0.3608]
[1729558505447,0.39728525,67278.0,67275.0,0.3608]
[1729558505647,0.27290867,67278.0,67275.0,0.3608]
[1729558505860,0.11073383,67278.0,67275.0,0.3608]
[1729558506059,0.28073383,67278.0,67269.0,0.074353]
[1729558506263,0.07435,67273.0,67267.0,0.3608]
[1729558506448,0.11073383,67272.0,67267.0,0.3608]
[1729558506652,0.11073383,67271.0,67267.0,0.3608]
[1729558506849,0.28073383,67270.0,67261.0,0.074362]
[1729558507052,0.17,67263.0,67261.0,0.074362]
[1729558507275,0.11073383,67262.0,67256.0,0.17]
[1729558507450,0.34729742,67261.0,67256.0,0.17]
[1729558507769,0.32626792,67260.0,67259.0,0.17]
[1729558507968,0.27293442,67260.0,67259.0,0.17]
[1729558508356,0.11073383,67260.0,67259.0,0.17]
[1729558508574,0.22735394,67260.0,67259.0,0.17]
[1729558508756,0.11073383,67260.0,67259.0,0.17]
[1729558508962,0.06511041,67260.0,67259.0,0.17]
[1729558509357,0.22735394,67260.0,67259.0,0.244365]
[1729558509548,0.2730335,67260.0,67259.0,0.244365]
[1729558510066,0.2730335,67260.0,67259.0,0.690405]
[1729558510369,0.001,67260.0,67259.0,1.44302994]
[1729558510554,0.32359471,67275.0,67270.0,0.074352]
[1729558510761,0.32359471,67275.0,67271.0,0.10799684]
[1729558510959,0.32359471,67275.0,67272.0,0.10799684]
[1729558511156,0.32359471,67275.0,67273.0,0.10799684]
[1729558511361,0.32359471,67275.0,67274.0,0.10799684]
[1729558512567,0.32459471,67275.0,67274.0,0.10799684]
[1729558512757,0.49459471,67275.0,67274.0,0.10799684]
[1729558512957,0.56894171,67275.0,67274.0,0.10799684]
[1729558513362,0.56894171,67275.0,67274.0,0.10899684]
[1729558513966,0.94051471,67275.0,67271.0,0.08966335]
[1729558514167,0.074361,67264.0,67259.0,0.074365]
[1729558514372,0.074364,67260.0,67259.0,0.074365]
[1729558514965,0.3608,67261.0,67254.0,0.00222992]
[1729558515164,0.074367,67257.0,67256.0,0.074368]
[1729558516368,0.074367,67257.0,67256.0,0.076368]
[1729558516969,0.3608,67259.0,67256.0,0.076368]
[1729558517174,0.3608,67259.0,67257.0,0.074367]
[1729558517377,0.11890954,67261.0,67257.0,0.074367]
[1729558517581,0.11890954,67261.0,67258.0,0.07396387]
[1729558517582,0.074363,67261.0,67258.0,0.07396387]
[1729558517788,0.074364,67260.0,67258.0,0.07396387]
[1729558518471,0.002,67259.0,67257.0,0.07396387]
[1729558518675,0.002,67259.0,67258.0,0.244366]
[1729558520274,0.17,67265.0,67260.0,0.074364]
[1729558520473,0.17,67265.0,67260.0,0.14830418]
[1729558520666,0.074361,67263.0,67260.0,0.14830418]
[1729558521675,0.17,67265.0,67260.0,0.14930418]
[1729558521880,0.244363,67261.0,67260.0,0.07494018]
[1729558522377,0.244363,67261.0,67260.0,0.001]
[1729558523079,0.245363,67261.0,67260.0,0.001]
[1729558524273,0.245363,67261.0,67260.0,0.06016285]
[1729558524578,0.171,67261.0,67255.0,0.14830918]
[1729558524784,0.074364,67260.0,67255.0,0.31830918]
[1729558525186,0.074368,67257.0,67255.0,0.07394018]
[1729558525482,0.074368,67257.0,67254.0,0.07659992]
[1729558525685,0.074368,67257.0,67255.0,0.003]
[1729558526278,0.074368,67257.0,67254.0,0.07659992]
[1729558526475,0.074368,67257.0,67255.0,0.003]
[1729558528278,0.074368,67257.0,67254.0,0.07659992]
[1729558528585,0.074368,67257.0,67254.0,0.08059992]
[1729558528995,0.074368,67257.0,67254.0,0.004]
[1729558528996,0.435169,67255.0,67254.0,0.004]
[1729558529289,0.605169,67255.0,67244.0,0.0739713]
[1729558529491,0.074382,67244.0,67242.0,0.07398075]
[1729558529996,0.074382,67244.0,67243.0,0.1798087]
[1729558530192,0.17,67245.0,67243.0,0.10582795]
[1729558530489,0.17,67245.0,67241.0,0.074385]
[1729558530490,0.17,67245.0,67244.0,0.07398052]
[1729558530691,0.074373,67252.0,67244.0,0.10572572]
[1729558530876,0.17,67251.0,67246.0,0.07396159]
[1729558531073,0.17,67251.0,67247.0,0.1795249]
[1729558531393,0.074373,67252.0,67248.0,0.074377]
[1729558531589,0.00076,67255.0,67251.0,0.07396159]
[1729558531792,0.17,67262.0,67254.0,0.07399064]
[1729558531988,0.074367,67258.0,67255.0,0.07399126]
[1729558532285,0.074367,67258.0,67257.0,0.07399126]
[1729558532790,0.074367,67258.0,67257.0,0.17926625]
[1729558533289,0.076367,67258.0,67257.0,0.10530425]
[1729558534682,0.078367,67258.0,67257.0,0.10630425]
[1729558534879,0.080367,67258.0,67257.0,0.10730425]
[1729558536385,0.696407,67258.0,67248.0,0.3608]
[1729558536591,0.074375,67250.0,67249.0,0.1056446]
[1729558536989,0.17,67250.0,67249.0,0.22916249]
[1729558537199,0.17,67250.0,67249.0,0.30353849]
[1729558537905,0.172,67250.0,67249.0,0.074376]
[1729558538192,0.172,67250.0,67249.0,0.19769649]
[1729558538400,0.002,67250.0,67249.0,0.19769649]
[1729558538590,0.002,67250.0,67249.0,0.46179649]
[1729558538788,0.244367,67258.0,67254.0,0.07437]
[1729558539096,0.074367,67258.0,67255.0,0.39414424]
[1729558539290,0.435155,67268.0,67249.0,0.074376]
[1729558539488,0.435161,67263.0,67262.0,0.07419297]
[1729558539691,0.074362,67262.0,67261.0,0.07419297]
[1729558540097,0.520402,67262.0,67261.0,0.07419297]
[1729558540487,0.074364,67260.0,67258.0,0.07419297]
[1729558540690,0.17,67259.0,67258.0,0.07419297]
[1729558540986,0.244365,67259.0,67258.0,0.07419297]
[1729558541190,0.074373,67252.0,67251.0,0.074374]
[1729558541393,0.244373,67252.0,67251.0,0.19765742]
[1729558542800,0.244373,67252.0,67251.0,0.1977617]
[1729558543499,0.244373,67252.0,67251.0,0.1987617]
[1729558543995,0.244373,67252.0,67251.0,0.1243877]
[1729558544789,0.247373,67252.0,67251.0,0.1243877]
[1729558545192,0.077373,67252.0,67251.0,0.1243877]
[1729558545503,0.247373,67252.0,67251.0,0.1243877]
[1729558546189,0.244373,67252.0,67251.0,0.1243877]
[1729558546395,0.247373,67252.0,67251.0,0.1243877]
[1729558546593,0.247373,67252.0,67251.0,0.1233877]
[1729558546797,0.248373,67252.0,67251.0,0.1243877]
[1729558547292,0.074376,67249.0,67248.0,0.00223028]
[1729558547490,0.02227532,67249.0,67248.0,0.12589195]
[1729558547691,0.17,67251.0,67248.0,0.12589195]
[1729558547898,0.17,67251.0,67248.0,0.00223028]
[1729558548398,0.074376,67249.0,67248.0,0.00223028]
[1729558548784,0.075376,67249.0,67248.0,0.00223028]
[1729558550099,0.074376,67249.0,67248.0,0.00223028]
[1729558550298,0.074376,67249.0,67248.0,0.00323028]
[1729558550519,0.074376,67249.0,67248.0,0.001]
[1729558550800,0.074379,67247.0,67242.0,0.271]
[1729558551107,0.074379,67247.0,67243.0,0.12334545]
[1729558551295,0.074379,67247.0,67244.0,0.12334545]
[1729558551495,0.074379,67247.0,67245.0,0.22683982]
[1729558551690,0.17,67246.0,67242.0,0.271]
[1729558551906,0.17,67246.0,67243.0,0.22685896]
[1729558552115,0.17,67246.0,67244.0,0.22685896]
[1729558552302,0.17,67246.0,67245.0,0.2268589]
[1729558554000,0.173,67246.0,67245.0,0.2278589]
[1729558554505,0.173,67246.0,67245.0,0.2268589]
[1729558554703,0.171,67246.0,67245.0,0.2278589]
[1729558555012,0.173,67246.0,67245.0,0.2278589]
[1729558557099,0.173,67246.0,67245.0,0.22776335]
[1729558557803,0.171,67246.0,67245.0,0.22776335]
[1729558558106,0.173,67246.0,67245.0,0.22776335]
[1729558558804,0.12834327,67246.0,67245.0,0.22776335]
[1729558559802,0.12734327,67246.0,67245.0,0.22676335]
[1729558560015,0.003,67246.0,67245.0,0.22776335]
[1729558560195,0.3608,67252.0,67250.0,0.074374]
[1729558560394,0.3608,67252.0,67251.0,0.22676335]
[1729558560596,0.24437,67255.0,67251.0,0.22676335]
[1729558560807,0.24437,67255.0,67252.0,0.22676335]
[1729558561011,0.17,67259.0,67257.0,0.074367]
[1729558561214,0.17,67259.0,67258.0,0.1030387]
[1729558561215,0.244365,67259.0,67258.0,0.1030387]
[1729558565709,0.074376,67249.0,67246.0,0.1038871]
[1729558565921,0.074376,67249.0,67247.0,0.12303985]
[1729558565922,0.435176,67249.0,67247.0,0.12303985]
[1729558566101,0.435176,67249.0,67248.0,0.12303985]
[1729558566506,0.074383,67243.0,67242.0,0.6318]
[1729558566816,0.244383,67243.0,67242.0,0.39094788]
[1729558567204,0.605183,67243.0,67242.0,0.11994788]
[1729558567510,0.244383,67243.0,67242.0,0.11994788]
[1729558567909,0.074388,67239.0,67237.0,0.01070457]
[1729558568117,0.074388,67239.0,67238.0,0.12021155]
[1729558568319,0.074388,67239.0,67231.0,0.4351821]
[1729558568320,0.4462,67238.0,67226.0,0.00223135]
[1729558568516,0.4352,67227.0,67226.0,0.00223135]
[1729558569604,0.6052,67227.0,67226.0,0.00223135]
[1729558573315,0.074407,67222.0,67217.0,0.435211]
[1729558573508,0.17,67218.0,67217.0,0.435211]
[1729558573710,0.17,67218.0,67217.0,0.3608]
[1729558575020,0.5308,67218.0,67216.0,0.2702]
[1729558575218,0.074411,67217.0,67216.0,0.2702]
[1729558579323,0.074411,67217.0,67211.0,0.074418]